[Event "XXII Obert Internacional d'Escacs Sant Marti 2022"]
[Site "Barcelona, Spain"]
[Date "2022.07.21"]
[Round "9.1"]
[White "Pena Gomez, Manuel"]
[Black "Asis Gargatagli, Hipolito"]
[Result "0-1"]
[TimeControl "1.30 fb 30"]
[WhiteElo "2492"]
[BlackElo "2514"]

1. c4 {[%clk 01:30:57]} {[%emt 00:00:02]} Nf6 {[%clk 01:30:43]} {[%emt
00:00:17]} 2. g3 {[%clk 01:31:21]} {[%emt 00:00:07]} g6 {[%clk 01:31:06]}
{[%emt 00:00:07]} 3. Bg2 {[%clk 01:31:42]} {[%emt 00:00:09]} Bg7 {[%clk
01:31:31]} {[%emt 00:00:05]} 4. Nc3 {[%clk 01:32:08]} {[%emt 00:00:04]} O-O
{[%clk 01:31:48]} {[%emt 00:00:13]} 5. e4 {[%clk 01:32:05]} {[%emt 00:00:32]}
d6 {[%clk 01:31:03]} {[%emt 00:01:16]} 6. Nf3 {[%clk 01:30:20]} {[%emt
00:02:16]} c5 {[%clk 01:26:50]} {[%emt 00:04:43]} 7. O-O {[%clk 01:28:33]}
{[%emt 00:02:17]} Nc6 {[%clk 01:24:46]} {[%emt 00:02:33]} 8. d3 {[%clk
01:28:11]} {[%emt 00:00:52]} Bg4 {[%clk 01:08:07]} {[%emt 00:17:09]} 9. h3
{[%clk 01:27:59]} {[%emt 00:00:43]} Bxf3 {[%clk 01:08:05]} {[%emt 00:00:31]} 10.
Bxf3 {[%clk 01:28:27]} {[%emt 00:00:02]} Rb8 {[%clk 01:06:53]} {[%emt
00:01:42]} 11. Be3 {[%clk 01:27:17]} {[%emt 00:01:40]} a6 {[%clk 01:05:03]}
{[%emt 00:02:21]} 12. Qd2 {[%clk 01:24:08]} {[%emt 00:03:39]} b5 {[%clk
00:56:51]} {[%emt 00:08:42]} 13. Bg2 {[%clk 01:23:01]} {[%emt 00:01:36]} Nd4
{[%clk 00:50:22]} {[%emt 00:07:00]} 14. f4 {[%clk 01:20:13]} {[%emt 00:03:18]}
Nd7 {[%clk 00:50:20]} {[%emt 00:00:31]} 15. Rae1 {[%clk 01:07:26]} {[%emt
00:13:17]} e6 {[%clk 00:46:18]} {[%emt 00:04:32]} 16. Kh2 {[%clk 00:55:23]}
{[%emt 00:12:33]} Qa5 {[%clk 00:41:17]} {[%emt 00:05:31]} 17. h4 {[%clk
00:39:40]} {[%emt 00:16:13]} bxc4 {[%clk 00:33:14]} {[%emt 00:08:33]} 18. dxc4
{[%clk 00:39:49]} {[%emt 00:00:22]} Qb4 {[%clk 00:31:38]} {[%emt 00:02:05]} 19.
Rb1 {[%clk 00:26:28]} {[%emt 00:13:51]} Qxc4 {[%clk 00:30:28]} {[%emt
00:01:41]} 20. Rfc1 {[%clk 00:22:16]} {[%emt 00:04:41]} Nf6 {[%clk 00:22:07]}
{[%emt 00:08:51]} 21. Kh1 {[%clk 00:21:00]} {[%emt 00:01:47]} Qb4 {[%clk
00:19:12]} {[%emt 00:03:24]} 22. Qd1 {[%clk 00:20:27]} {[%emt 00:01:03]} h5
{[%clk 00:18:53]} {[%emt 00:00:49]} 23. Bg1 {[%clk 00:14:57]} {[%emt 00:06:01]}
Ng4 {[%clk 00:16:21]} {[%emt 00:03:02]} 24. Qd3 {[%clk 00:14:11]} {[%emt
00:01:15]} a5 {[%clk 00:12:11]} {[%emt 00:04:40]} 25. Bf1 {[%clk 00:13:18]}
{[%emt 00:01:23]} Qb7 {[%clk 00:10:45]} {[%emt 00:01:56]} 26. Bg2 {[%clk
00:13:44]} {[%emt 00:00:05]} Qe7 {[%clk 00:10:47]} {[%emt 00:00:27]} 27. Re1
{[%clk 00:12:56]} {[%emt 00:01:18]} Rb4 {[%clk 00:10:53]} {[%emt 00:00:24]} 28.
Qa6 {[%clk 00:10:02]} {[%emt 00:03:25]} Rfb8 {[%clk 00:10:19]} {[%emt
00:01:04]} 29. b3 {[%clk 00:06:36]} {[%emt 00:03:56]} Bf6 {[%clk 00:10:03]}
{[%emt 00:00:46]} 30. Qd3 {[%clk 00:05:50]} {[%emt 00:01:17]} Qc7 {[%clk
00:09:24]} {[%emt 00:01:08]} 31. Rbc1 {[%clk 00:06:02]} {[%emt 00:00:18]} Qe7
{[%clk 00:09:11]} {[%emt 00:00:43]} 32. Bh3 {[%clk 00:05:38]} {[%emt 00:00:54]}
Bg7 {[%clk 00:05:30]} {[%emt 00:04:11]} 33. Qd1 {[%clk 00:04:13]} {[%emt
00:01:54]} Nf6 {[%clk 00:05:08]} {[%emt 00:00:52]} 34. Bg2 {[%clk 00:04:23]}
{[%emt 00:00:21]} Nd7 {[%clk 00:05:16]} {[%emt 00:00:21]} 35. Qd3 {[%clk
00:04:11]} {[%emt 00:00:43]} Nb6 {[%emt 00:01:02]} 36. Qa6 {[%clk 00:04:33]}
{[%emt 00:00:06]} Ra8 {[%clk 00:04:04]} {[%emt 00:01:11]} 37. Qd3 {[%clk
00:04:56]} {[%emt 00:00:07]} Rb8 {[%clk 00:04:09]} {[%emt 00:00:25]} 38. Qa6
{[%clk 00:05:25]} a4 {[%clk 00:02:02]} {[%emt 00:02:37]} 39. bxa4 {[%clk
00:05:53]} {[%emt 00:00:02]} Ra8 {[%clk 00:02:27]} {[%emt 00:00:05]} 40. Qd3
{[%clk 00:05:52]} {[%emt 00:00:31]} Nxa4 {[%clk 00:02:48]} {[%emt 00:00:09]} 41.
Ne2 {[%clk 00:02:16]} {[%emt 00:04:05]} Nb2 {[%clk 00:02:55]} {[%emt 00:00:23]}
42. Qd2 {[%clk 00:02:44]} {[%emt 00:00:01]} Nc4 {[%clk 00:02:30]} {[%emt
00:00:56]} 43. Qd3 {[%clk 00:02:55]} {[%emt 00:00:20]} Ra3 {[%clk 00:01:50]}
{[%emt 00:01:09]} 44. Rc3 {[%clk 00:02:37]} {[%emt 00:00:48]} Nxe2 {[%clk
00:01:40]} {[%emt 00:00:40]} 45. Rxa3 {[%clk 00:03:06]} {[%emt 00:00:01]} Nxa3
{[%clk 00:01:17]} {[%emt 00:00:54]} 46. Rxe2 {[%clk 00:03:21]} {[%emt
00:00:15]} Nb5 {[%clk 00:01:33]} {[%emt 00:00:13]} 47. Rc2 {[%clk 00:02:30]}
{[%emt 00:01:21]} Bd4 {[%clk 00:00:53]} {[%emt 00:01:10]} 48. Rc4 {[%clk
00:01:58]} {[%emt 00:01:02]} Rb2 {[%clk 00:01:07]} {[%emt 00:00:16]} 49. Bxd4
{[%clk 00:00:32]} {[%emt 00:01:56]} Nxd4 {[%clk 00:01:33]} {[%emt 00:00:04]} 50.
a4 {[%emt 00:00:20]} Qa7 {[%clk 00:01:43]} {[%emt 00:00:17]} 51. Qa3 {[%clk
00:00:40]} {[%emt 00:00:36]} Rb3 {[%clk 00:02:02]} {[%emt 00:00:11]} 52. Qc1
{[%clk 00:00:32]} {[%emt 00:00:37]} Rxg3 {[%clk 00:02:11]} {[%emt 00:00:21]} 53.
Kh2 {[%emt 00:00:31]} Qe7 {[%clk 00:02:01]} {[%emt 00:00:38]} 54. Bh3 {[%clk
00:00:32]} {[%emt 00:00:31]} Qxh4 {[%clk 00:02:23]} {[%emt 00:00:08]} 55. Qf1
{[%clk 00:00:51]} {[%emt 00:00:10]} Nf3+ {[%emt 00:00:20]} 0-1

[Event "XXII Obert Internacional d'Escacs Sant Marti 2022"]
[Site "Barcelona, Spain"]
[Date "2022.07.21"]
[Round "9.2"]
[White "Roshka, Yevgeniy"]
[Black "Berdayes Ason, Dylan Isidro"]
[Result "1/2-1/2"]
[TimeControl "1.30 fb 30"]
[WhiteElo "2497"]
[BlackElo "2480"]

1. d4 {[%clk 01:30:58]} {[%emt 00:00:01]} Nf6 {[%clk 01:30:58]} {[%emt
00:00:02]} 2. c4 {[%clk 01:31:22]} {[%emt 00:00:05]} e6 {[%clk 01:31:25]}
{[%emt 00:00:04]} 3. Nc3 {[%clk 01:31:50]} {[%emt 00:00:02]} Bb4 {[%clk
01:31:47]} {[%emt 00:00:08]} 4. e3 {[%clk 01:32:16]} {[%emt 00:00:04]} O-O
{[%clk 01:32:13]} {[%emt 00:00:04]} 5. Bd2 {[%clk 01:32:45]} {[%emt 00:00:02]}
d5 {[%clk 01:32:41]} {[%emt 00:00:02]} 6. Nf3 {[%clk 01:33:10]} {[%emt
00:00:04]} b6 {[%clk 01:33:06]} {[%emt 00:00:05]} 7. cxd5 {[%clk 01:33:28]}
{[%emt 00:00:12]} exd5 {[%clk 01:33:34]} {[%emt 00:00:01]} 8. Rc1 {[%clk
01:33:50]} {[%emt 00:00:09]} Bb7 {[%clk 01:33:39]} {[%emt 00:00:24]} 9. Bd3
{[%clk 01:33:43]} {[%emt 00:00:37]} Be7 {[%clk 01:34:02]} {[%emt 00:00:07]} 10.
O-O {[%clk 01:33:46]} {[%emt 00:00:27]} c5 {[%clk 01:34:19]} {[%emt 00:00:13]}
11. Ne5 {[%clk 01:33:40]} {[%emt 00:00:36]} Nc6 {[%clk 01:34:46]} {[%emt
00:00:03]} 12. f4 {[%clk 01:24:37]} {[%emt 00:09:33]} cxd4 {[%clk 01:34:57]}
{[%emt 00:00:19]} 13. Nxc6 {[%clk 01:25:05]} {[%emt 00:00:02]} Bxc6 {[%clk
01:35:24]} {[%emt 00:00:03]} 14. exd4 {[%clk 01:25:28]} {[%emt 00:00:07]} Qd7
{[%clk 01:34:10]} {[%emt 00:01:44]} 15. f5 {[%clk 01:16:25]} {[%emt 00:09:34]}
Ne4 {[%clk 01:28:29]} {[%emt 00:06:10]} 16. Bf4 {[%clk 00:59:50]} {[%emt
00:17:05]} Qxf5 {[%clk 01:18:47]} {[%emt 00:10:13]} 17. Be5 {[%clk 00:59:16]}
{[%emt 00:01:04]} Qd7 {[%clk 01:11:53]} {[%emt 00:07:23]} 18. Bxe4 {[%clk
00:49:04]} {[%emt 00:10:42]} dxe4 {[%clk 01:12:21]} {[%emt 00:00:02]} 19. d5
{[%clk 00:49:28]} {[%emt 00:00:06]} Bb7 {[%clk 01:11:29]} {[%emt 00:01:22]} 20.
d6 {[%clk 00:47:10]} {[%emt 00:02:48]} Bg5 {[%clk 01:11:27]} {[%emt 00:00:31]}
21. Rc2 {[%clk 00:47:32]} {[%emt 00:00:09]} Rfe8 {[%clk 01:06:16]} {[%emt
00:05:41]} 22. Qd4 {[%clk 00:44:36]} {[%emt 00:03:26]} f6 {[%clk 01:04:15]}
{[%emt 00:02:32]} 23. Bg3 {[%clk 00:44:30]} {[%emt 00:00:35]} Rac8 {[%clk
01:04:32]} {[%emt 00:00:14]} 24. h4 {[%clk 00:42:44]} {[%emt 00:02:15]} Bh6
{[%clk 01:04:40]} {[%emt 00:00:23]} 25. Re2 {[%clk 00:39:27]} {[%emt 00:03:47]}
Ba6 {[%clk 00:57:22]} {[%emt 00:07:48]} 26. Rxe4 {[%clk 00:39:46]} {[%emt
00:00:11]} Bxf1 {[%clk 00:57:40]} {[%emt 00:00:11]} 27. Kxf1 {[%clk 00:37:20]}
{[%emt 00:02:56]} Qf5+ {[%clk 00:48:48]} {[%emt 00:09:22]} 28. Kg1 {[%clk
00:37:40]} {[%emt 00:00:10]} Rxe4 {[%clk 00:49:11]} {[%emt 00:00:08]} 29. Nxe4
{[%clk 00:38:00]} {[%emt 00:00:09]} Qe6 {[%clk 00:45:19]} {[%emt 00:04:22]} 30.
Kh2 {[%clk 00:37:01]} {[%emt 00:01:29]} Re8 {[%clk 00:44:16]} {[%emt 00:01:33]}
31. Nc3 {[%clk 00:36:22]} {[%emt 00:01:09]} Be3 {[%clk 00:41:55]} {[%emt
00:02:51]} 32. Qa4 {[%clk 00:33:24]} {[%emt 00:03:28]} Bc5 {[%clk 00:36:22]}
{[%emt 00:06:03]} 33. Nb5 {[%clk 00:33:36]} {[%emt 00:00:18]} Qd7 {[%clk
00:34:27]} {[%emt 00:02:25]} 34. b4 {[%clk 00:32:41]} {[%emt 00:01:25]} a6
{[%clk 00:29:23]} {[%emt 00:05:35]} 35. Qxa6 {[%clk 00:25:04]} {[%emt
00:08:06]} Bxb4 {[%clk 00:29:06]} {[%emt 00:00:47]} 36. Nc7 {[%clk 00:25:21]}
{[%emt 00:00:13]} Bxd6 {[%clk 00:28:02]} {[%emt 00:01:34]} 37. Nxe8 {[%clk
00:25:49]} {[%emt 00:00:02]} Bxg3+ {[%clk 00:28:21]} {[%emt 00:00:10]} 38. Kxg3
{[%clk 00:26:17]} {[%emt 00:00:02]} Qxe8 {[%clk 00:28:51]} {[%emt 00:00:01]} 39.
Qxb6 {[%clk 00:26:37]} {[%emt 00:00:10]} Qe5+ {[%clk 00:28:14]} {[%emt
00:01:06]} 1/2-1/2

[Event "XXII Obert Internacional d'Escacs Sant Marti 2022"]
[Site "Barcelona, Spain"]
[Date "2022.07.21"]
[Round "9.3"]
[White "Aronyak, Ghosh"]
[Black "Macak, Stefan"]
[Result "1-0"]
[TimeControl "1.30 fb 30"]
[WhiteElo "2486"]
[BlackElo "2363"]

1. Nf3 {[%clk 01:30:23]} {[%emt 00:00:35]} e6 {[%clk 01:26:51]} {[%emt
00:04:10]} 2. c4 {[%clk 01:26:39]} {[%emt 00:04:14]} Nf6 {[%clk 01:26:43]}
{[%emt 00:00:37]} 3. Nc3 {[%clk 01:26:35]} {[%emt 00:00:34]} d5 {[%clk
01:26:50]} {[%emt 00:00:23]} 4. e3 {[%clk 01:25:18]} {[%emt 00:01:47]} Bd6
{[%clk 01:21:51]} {[%emt 00:05:29]} 5. b3 {[%clk 01:24:02]} {[%emt 00:01:48]}
c6 {[%clk 01:21:20]} {[%emt 00:01:00]} 6. Bb2 {[%clk 01:23:16]} {[%emt
00:01:15]} O-O {[%clk 01:21:32]} {[%emt 00:00:18]} 7. Rc1 {[%clk 01:20:29]}
{[%emt 00:03:18]} Nbd7 {[%clk 01:21:01]} {[%emt 00:01:01]} 8. Be2 {[%clk
01:18:52]} {[%emt 00:02:07]} a6 {[%clk 01:13:21]} {[%emt 00:08:11]} 9. d4
{[%clk 01:18:06]} {[%emt 00:01:15]} b5 {[%clk 01:12:40]} {[%emt 00:01:11]} 10.
O-O {[%clk 01:15:31]} {[%emt 00:03:02]} b4 {[%clk 01:07:16]} {[%emt 00:05:58]}
11. Na4 {[%clk 01:13:08]} {[%emt 00:02:52]} Ne4 {[%clk 01:06:04]} {[%emt
00:01:41]} 12. Ne5 {[%clk 01:04:48]} {[%emt 00:08:50]} Qh4 {[%clk 00:57:51]}
{[%emt 00:08:43]} 13. g3 {[%clk 01:01:19]} {[%emt 00:03:59]} Qh3 {[%clk
00:49:21]} {[%emt 00:08:59]} 14. cxd5 {[%clk 00:56:45]} {[%emt 00:05:06]} cxd5
{[%clk 00:46:30]} {[%emt 00:03:21]} 15. Bg4 {[%clk 00:53:37]} {[%emt 00:03:37]}
Qh6 {[%clk 00:45:19]} {[%emt 00:01:41]} 16. Rxc8 {[%clk 00:52:36]} {[%emt
00:01:32]} Rfxc8 {[%clk 00:39:05]} {[%emt 00:06:44]} 17. Nxd7 {[%clk 00:53:00]}
{[%emt 00:00:05]} Ra7 {[%clk 00:37:43]} {[%emt 00:01:53]} 18. Ndc5 {[%clk
00:51:43]} {[%emt 00:01:46]} f5 {[%clk 00:32:42]} {[%emt 00:05:32]} 19. Nxe4
{[%clk 00:48:56]} {[%emt 00:03:17]} dxe4 {[%clk 00:30:49]} {[%emt 00:02:23]} 20.
Be2 {[%clk 00:49:21]} {[%emt 00:00:05]} g5 {[%clk 00:30:22]} {[%emt 00:00:57]}
21. d5 {[%clk 00:47:28]} {[%emt 00:02:23]} e5 {[%clk 00:27:35]} {[%emt
00:03:17]} 22. Nb6 {[%clk 00:47:15]} {[%emt 00:00:43]} Rf8 {[%clk 00:24:40]}
{[%emt 00:03:24]} 23. Nc4 {[%clk 00:46:56]} {[%emt 00:00:50]} f4 {[%clk
00:23:50]} {[%emt 00:01:19]} 24. Bg4 {[%clk 00:46:40]} {[%emt 00:00:46]} 1-0

[Event "XXII Obert Internacional d'Escacs Sant Marti 2022"]
[Site "Barcelona, Spain"]
[Date "2022.07.21"]
[Round "9.4"]
[White "D`costa, Lorin"]
[Black "Narciso Dublan, Marc"]
[Result "1/2-1/2"]
[TimeControl "1.30 fb 30"]
[WhiteElo "2372"]
[BlackElo "2461"]

1. c4 {[%clk 01:29:46]} {[%emt 00:01:13]} f5 {[%clk 01:30:00]} {[%emt
00:01:00]} 2. g3 {[%clk 01:27:06]} {[%emt 00:03:10]} Nf6 {[%clk 01:30:17]}
{[%emt 00:00:12]} 3. Bg2 {[%clk 01:26:48]} {[%emt 00:00:49]} e5 {[%clk
01:29:12]} {[%emt 00:01:35]} 4. Nc3 {[%clk 01:25:40]} {[%emt 00:01:38]} Bb4
{[%clk 01:28:12]} {[%emt 00:01:30]} 5. Nd5 {[%clk 01:23:58]} {[%emt 00:02:12]}
a5 {[%clk 01:25:44]} {[%emt 00:02:57]} 6. e3 {[%clk 01:21:27]} {[%emt
00:03:01]} c6 {[%clk 01:19:56]} {[%emt 00:06:19]} 7. Nxf6+ {[%clk 01:16:36]}
{[%emt 00:05:21]} Qxf6 {[%clk 01:20:20]} {[%emt 00:00:05]} 8. Ne2 {[%clk
01:16:26]} {[%emt 00:00:39]} Be7 {[%clk 01:19:53]} {[%emt 00:00:57]} 9. d3
{[%clk 01:09:53]} {[%emt 00:07:04]} d6 {[%clk 01:19:21]} {[%emt 00:01:02]} 10.
Nc3 {[%clk 01:07:17]} {[%emt 00:03:06]} Nd7 {[%clk 01:16:46]} {[%emt 00:03:04]}
11. Qc2 {[%clk 00:56:53]} {[%emt 00:10:55]} O-O {[%clk 01:15:43]} {[%emt
00:01:32]} 12. b3 {[%clk 00:40:50]} {[%emt 00:16:34]} Qg6 {[%clk 01:04:18]}
{[%emt 00:11:55]} 13. d4 {[%clk 00:27:13]} {[%emt 00:14:07]} e4 {[%clk
01:00:27]} {[%emt 00:04:21]} 14. Bb2 {[%clk 00:18:38]} {[%emt 00:09:06]} Nf6
{[%clk 00:59:25]} {[%emt 00:01:31]} 15. Ne2 {[%clk 00:17:29]} {[%emt 00:01:39]}
d5 {[%clk 00:57:36]} {[%emt 00:02:19]} 16. a4 {[%clk 00:16:17]} {[%emt
00:01:42]} Qf7 {[%clk 00:53:04]} {[%emt 00:05:00]} 17. O-O {[%clk 00:12:04]}
{[%emt 00:04:44]} Be6 {[%clk 00:47:56]} {[%emt 00:05:39]} 18. Rfc1 {[%clk
00:12:09]} {[%emt 00:00:25]} g5 {[%clk 00:46:58]} {[%emt 00:01:27]} 19. Ba3
{[%clk 00:10:31]} {[%emt 00:02:09]} Bxa3 {[%clk 00:39:47]} {[%emt 00:07:42]} 20.
Rxa3 {[%clk 00:10:59]} {[%emt 00:00:01]} Qh5 {[%clk 00:38:07]} {[%emt
00:02:09]} 21. Qd1 {[%clk 00:08:58]} {[%emt 00:02:32]} f4 {[%clk 00:34:55]}
{[%emt 00:03:42]} 22. exf4 {[%clk 00:07:00]} {[%emt 00:02:28]} Bg4 {[%clk
00:35:17]} {[%emt 00:00:07]} 23. Ra2 {[%clk 00:06:06]} {[%emt 00:01:24]} gxf4
{[%clk 00:35:33]} {[%emt 00:00:13]} 24. gxf4 {[%clk 00:05:51]} {[%emt
00:00:46]} Kh8 {[%clk 00:34:14]} {[%emt 00:01:48]} 25. Qf1 {[%clk 00:05:35]}
{[%emt 00:00:47]} Bxe2 {[%clk 00:33:27]} {[%emt 00:01:17]} 26. Qxe2 {[%clk
00:04:19]} {[%emt 00:01:47]} Qxe2 {[%clk 00:20:51]} {[%emt 00:13:06]} 27. Rxe2
{[%clk 00:04:48]} {[%emt 00:00:01]} Nh5 {[%clk 00:21:14]} {[%emt 00:00:06]} 28.
Rc3 {[%clk 00:03:33]} {[%emt 00:01:46]} Nxf4 {[%clk 00:11:30]} {[%emt
00:10:14]} 29. Rd2 {[%clk 00:03:58]} {[%emt 00:00:05]} Rf6 {[%clk 00:10:49]}
{[%emt 00:01:11]} 30. cxd5 {[%clk 00:02:06]} {[%emt 00:02:22]} cxd5 {[%clk
00:10:48]} {[%emt 00:00:31]} 31. f3 {[%clk 00:01:36]} {[%emt 00:01:00]} e3
{[%clk 00:08:02]} {[%emt 00:03:15]} 32. Rxe3 {[%clk 00:01:41]} {[%emt
00:00:26]} Rg8 {[%clk 00:08:29]} {[%emt 00:00:02]} 33. Rc3 {[%clk 00:01:10]}
{[%emt 00:01:01]} Re6 {[%clk 00:08:45]} {[%emt 00:00:14]} 34. Kf1 {[%emt
00:01:28]} Rge8 {[%clk 00:07:35]} {[%emt 00:01:02]} 35. Rcc2 {[%clk 00:00:42]}
{[%emt 00:00:39]} Re3 {[%clk 00:07:11]} {[%emt 00:00:54]} 36. Kf2 {[%clk
00:00:38]} {[%emt 00:00:34]} Rxb3 {[%clk 00:05:07]} {[%emt 00:02:34]} 37. Bf1
{[%clk 00:00:55]} {[%emt 00:00:13]} Ree3 {[%clk 00:04:58]} {[%emt 00:00:39]} 38.
Be2 {[%clk 00:00:41]} {[%emt 00:00:44]} Rec3 {[%clk 00:02:01]} {[%emt
00:03:27]} 39. Rxc3 Rxc3 {[%clk 00:02:30]} 40. Rb2 {[%clk 00:00:55]} {[%emt
00:00:19]} Ra3 {[%clk 00:02:10]} {[%emt 00:00:50]} 41. Bb5 {[%clk 00:00:41]}
{[%emt 00:00:44]} Ne6 {[%clk 00:01:14]} {[%emt 00:01:26]} 42. Bd7 {[%clk
00:00:37]} {[%emt 00:00:34]} Nxd4 {[%clk 00:01:29]} {[%emt 00:00:14]} 43. Rxb7
{[%clk 00:00:57]} {[%emt 00:00:11]} Nxf3 {[%clk 00:00:38]} {[%emt 00:01:21]} 44.
Bf5 {[%clk 00:00:32]} {[%emt 00:00:56]} Ng5 {[%clk 00:00:55]} {[%emt 00:00:12]}
45. Bd7 {[%clk 00:00:32]} {[%emt 00:00:30]} Ne4+ {[%clk 00:01:07]} {[%emt
00:00:17]} 46. Kg2 {[%clk 00:00:41]} {[%emt 00:00:22]} Nc5 {[%clk 00:00:42]}
{[%emt 00:00:55]} 47. Ra7 {[%clk 00:00:48]} {[%emt 00:00:23]} d4 {[%clk
00:00:46]} {[%emt 00:00:26]} 48. Rxa5 {[%clk 00:00:50]} {[%emt 00:00:27]} Nxd7
{[%clk 00:01:00]} {[%emt 00:00:16]} 49. Ra8+ {[%clk 00:01:15]} {[%emt
00:00:05]} Kg7 {[%clk 00:01:07]} {[%emt 00:00:23]} 50. Ra7 {[%clk 00:01:44]}
Kg6 {[%clk 00:01:28]} {[%emt 00:00:10]} 51. Rxd7 {[%clk 00:02:09]} {[%emt
00:00:06]} Rxa4 {[%clk 00:01:55]} {[%emt 00:00:03]} 52. Kf3 {[%clk 00:01:46]}
{[%emt 00:00:52]} h5 {[%clk 00:01:42]} {[%emt 00:00:43]} 53. Ke4 {[%clk
00:01:06]} {[%emt 00:01:10]} Kg5 {[%clk 00:01:39]} {[%emt 00:00:33]} 54. Rxd4
{[%clk 00:01:06]} {[%emt 00:00:30]} Rxd4+ 55. Kxd4 {[%clk 00:01:35]} Kg4 {[%clk
00:01:46]} {[%emt 00:00:05]} 56. Ke3 {[%clk 00:01:49]} {[%emt 00:00:17]} Kh3
{[%clk 00:02:12]} {[%emt 00:00:03]} 57. Kf2 {[%clk 00:01:44]} {[%emt 00:00:35]}
Kxh2 {[%clk 00:02:40]} {[%emt 00:00:02]} 58. Kf1 {[%clk 00:02:04]} {[%emt
00:00:11]} h4 {[%clk 00:03:08]} {[%emt 00:00:02]} 59. Kf2 {[%clk 00:02:29]}
{[%emt 00:00:04]} h3 {[%clk 00:03:34]} {[%emt 00:00:04]} 60. Kf1 {[%clk
00:02:55]} {[%emt 00:00:05]} Kg3 {[%clk 00:04:00]} {[%emt 00:00:04]} 61. Kg1
{[%clk 00:03:22]} {[%emt 00:00:02]} h2+ {[%clk 00:04:25]} {[%emt 00:00:05]} 62.
Kh1 {[%clk 00:03:50]} {[%emt 00:00:03]} Kh3 {[%clk 00:04:47]} {[%emt 00:00:03]}
1/2-1/2

[Event "XXII Obert Internacional d'Escacs Sant Marti 2022"]
[Site "Barcelona, Spain"]
[Date "2022.07.21"]
[Round "9.5"]
[White "Valenzuela Gomez, Fernando"]
[Black "Kovchan, Alexander"]
[Result "1/2-1/2"]
[TimeControl "1.30 fb 30"]
[WhiteElo "2373"]
[BlackElo "2468"]

1. e4 {[%clk 01:26:54]} {[%emt 00:04:05]} c5 {[%clk 01:30:53]} {[%emt
00:00:07]} 2. Nf3 {[%clk 01:27:19]} {[%emt 00:00:05]} d6 {[%clk 01:31:15]}
{[%emt 00:00:08]} 3. d4 {[%clk 01:27:45]} {[%emt 00:00:04]} cxd4 {[%clk
01:31:38]} {[%emt 00:00:07]} 4. Nxd4 {[%clk 01:28:11]} {[%emt 00:00:04]} Nf6
{[%clk 01:31:58]} {[%emt 00:00:10]} 5. Nc3 {[%clk 01:28:35]} {[%emt 00:00:06]}
a6 {[%clk 01:32:21]} {[%emt 00:00:06]} 6. Bd3 {[%clk 01:29:00]} {[%emt
00:00:05]} g6 {[%clk 01:31:40]} {[%emt 00:01:12]} 7. f3 {[%clk 01:29:04]}
{[%emt 00:00:26]} e5 {[%clk 01:27:32]} {[%emt 00:04:38]} 8. Nb3 {[%clk
01:29:21]} {[%emt 00:00:13]} Be6 {[%clk 01:27:49]} {[%emt 00:00:13]} 9. Be3
{[%clk 01:29:15]} {[%emt 00:00:36]} h5 {[%clk 01:27:38]} {[%emt 00:00:41]} 10.
Qd2 {[%clk 01:28:58]} {[%emt 00:00:47]} Nbd7 {[%clk 01:28:01]} {[%emt
00:00:07]} 11. O-O-O {[%clk 01:27:57]} {[%emt 00:01:30]} Rc8 {[%clk 01:26:47]}
{[%emt 00:01:43]} 12. Kb1 {[%clk 01:26:29]} {[%emt 00:01:59]} Be7 {[%clk
01:24:05]} {[%emt 00:03:11]} 13. h3 {[%clk 01:18:12]} {[%emt 00:08:47]} h4
{[%clk 01:22:04]} {[%emt 00:02:32]} 14. f4 {[%clk 01:17:55]} {[%emt 00:00:47]}
exf4 {[%clk 01:14:52]} {[%emt 00:07:42]} 15. Bxf4 {[%clk 01:17:53]} {[%emt
00:00:32]} Nh5 {[%clk 01:13:59]} {[%emt 00:01:22]} 16. Bh2 {[%clk 01:14:20]}
{[%emt 00:04:02]} Ne5 {[%clk 01:11:30]} {[%emt 00:03:00]} 17. Be2 {[%clk
01:04:41]} {[%emt 00:10:10]} Nf6 {[%clk 01:08:49]} {[%emt 00:03:11]} 18. Rhf1
{[%clk 00:57:54]} {[%emt 00:07:17]} Qc7 {[%clk 01:05:07]} {[%emt 00:04:13]} 19.
Bf4 {[%clk 00:47:02]} {[%emt 00:11:20]} Nfd7 {[%clk 01:00:00]} {[%emt
00:05:37]} 20. Bg5 {[%clk 00:44:45]} {[%emt 00:02:47]} Bxg5 {[%clk 00:56:17]}
{[%emt 00:04:14]} 21. Qxg5 {[%clk 00:45:12]} {[%emt 00:00:03]} b5 {[%clk
00:56:22]} {[%emt 00:00:25]} 22. a3 {[%clk 00:43:22]} {[%emt 00:02:20]} Rb8
{[%clk 00:48:03]} {[%emt 00:08:49]} 23. Nd5 {[%clk 00:37:34]} {[%emt 00:06:18]}
Bxd5 {[%clk 00:48:08]} {[%emt 00:00:26]} 24. exd5 {[%clk 00:36:36]} {[%emt
00:01:28]} Qd8 {[%clk 00:44:43]} {[%emt 00:03:54]} 25. Qd2 {[%clk 00:33:07]}
{[%emt 00:03:58]} Rc8 {[%clk 00:37:54]} {[%emt 00:07:19]} 26. Nd4 {[%clk
00:32:20]} {[%emt 00:01:18]} Nb6 {[%clk 00:30:58]} {[%emt 00:07:26]} 27. Nc6
{[%clk 00:28:53]} {[%emt 00:03:57]} Nxc6 {[%clk 00:30:45]} {[%emt 00:00:43]} 28.
dxc6 {[%clk 00:29:18]} {[%emt 00:00:05]} Rxc6 {[%clk 00:30:49]} {[%emt
00:00:26]} 29. Bf3 {[%clk 00:21:14]} {[%emt 00:08:33]} d5 {[%clk 00:31:13]}
{[%emt 00:00:07]} 30. Bxd5 {[%clk 00:15:22]} {[%emt 00:06:22]} Nxd5 {[%clk
00:31:29]} {[%emt 00:00:14]} 31. Qxd5 {[%clk 00:15:33]} {[%emt 00:00:18]}
1/2-1/2